bitfinex/quotes_ETHUSD_20250403
["timestamp","ask_amount","ask_price","bid_price","bid_amount"]
[1743644268457,4.38212,1825.6,1825.3,46.682]
[1743644268754,4.38229,1825.6,1825.3,46.682]
[1743644269125,4.3826,1825.4,1825.3,46.682]
[1743644269452,4.38255,1825.5,1825.3,51.3502]
[1743644269642,4.38255,1825.5,1825.3,51.60647071]
[1743644269842,4.38216,1825.6,1825.3,51.60647071]
[1743644270453,4.38243,1825.5,1825.3,51.60647071]
[1743644270655,3.0,1825.7,1825.3,55.98919071]
[1743644270955,3.0,1825.7,1825.4,5.59891907]
[1743644271157,7.38198,1825.7,1825.5,0.25556648]
[1743644271652,4.38212,1825.6,1825.5,0.25556648]
[1743644271881,7.38198,1825.7,1825.5,0.25556648]
[1743644272158,7.38198,1825.7,1825.6,0.25506634]
[1743644272359,4.38219,1825.6,1825.3,5.599]
[1743644272540,7.38198,1825.7,1825.3,5.599]
[1743644272541,7.38198,1825.7,1825.4,0.31066379]
[1743644272734,3.0,1825.7,1825.4,0.31066379]
[1743644272934,7.38192,1825.7,1825.4,0.31066379]
[1743644273345,11.76402,1825.7,1825.4,0.25588726]
[1743644273554,7.38192,1825.7,1825.4,0.31066369]
[1743644273759,7.38192,1825.7,1825.4,1.00144996]
[1743644273928,7.38192,1825.7,1825.4,0.94667353]
[1743644274125,4.38192,1825.7,1825.4,0.94667353]
[1743644274330,0.1,1825.9,1825.5,0.8278758]
[1743644274530,4.38198,1825.7,1825.6,0.25524574]
[1743644279075,4.38198,1825.7,1825.6,5.85324574]
[1743644279451,9.080963,1825.7,1825.6,0.25524574]
[1743644279783,9.080963,1825.7,1825.6,5.74e-06]
[1743644279784,12.63218468,1825.7,1825.6,5.74e-06]
[1743644280074,5.20544,1825.3,1825.2,5.598]
[1743644280286,8.75666168,1825.3,1825.2,5.598]
[1743644280453,8.76736,1825.0,1824.7,0.7608]
[1743644280662,4.38364,1825.0,1824.8,5.598]
[1743644280869,4.3833,1825.2,1824.6,6.08]
[1743644280870,4.38441,1824.7,1824.6,5.598]
[1743644281315,9.59248,1824.5,1824.2,44.08784159]
[1743644281616,4.385,1824.4,1824.3,5.598]
[1743644281961,8.20702,1824.7,1824.3,5.598]
[1743644282185,12.59145,1824.7,1824.3,5.65280703]
[1743644282377,5.081745,1824.7,1824.3,5.598]
[1743644282682,4.38496,1824.5,1824.3,5.598]
[1743644283875,12.59155,1824.7,1824.3,5.598]
[1743644284076,4.38473,1824.6,1824.3,5.598]
[1743644284275,4.38492,1824.5,1824.3,5.598]
[1743644284605,4.38473,1824.6,1824.3,5.598]
[1743644284789,4.38473,1824.6,1824.3,10.31971164]
[1743644284988,4.38473,1824.6,1824.3,10.2649]
[1743644285175,8.76948,1824.6,1824.3,10.2649]
[1743644285370,4.38473,1824.6,1824.3,5.598]
[1743644285579,4.38473,1824.6,1824.3,5.65280941]
[1743644285776,4.38381,1824.9,1824.4,4.38484]
[1743644286107,8.18861,1824.9,1824.3,16.06311]
[1743644286409,4.38416,1824.8,1824.3,11.678]
[1743644286582,4.38416,1824.8,1824.3,17.28510982]
[1743644286913,4.38449,1824.7,1824.3,17.28510982]
[1743644287209,4.38449,1824.7,1824.4,0.05480459]
[1743644287411,4.38416,1824.8,1824.4,0.29628928]
[1743644287700,8.76842,1824.8,1824.4,0.05480351]
[1743644287875,4.38416,1824.8,1824.5,0.24116353]
[1743644288066,8.76842,1824.8,1824.5,0.24116353]
[1743644288586,4.38431,1824.7,1824.5,0.24116353]
[1743644289382,3.0,1824.8,1824.3,11.678]
[1743644289586,3.0,1824.8,1823.9,4.79723792]
[1743644289587,4.385,1824.4,1824.0,6.08]
[1743644289786,4.385,1824.4,1823.9,0.7698]
[1743644289787,4.38548,1824.2,1824.1,5.599]
[1743644290011,4.38548,1824.2,1823.9,0.7698]
[1743644290168,4.38548,1824.2,1824.1,5.599]
[1743644290821,8.77118,1824.2,1823.7,11.23644]
[1743644291000,8.77118,1824.2,1823.8,5.65382177]
[1743644291195,8.77118,1824.2,1823.5,41.086]
[1743644291196,4.3866,1823.8,1823.5,47.9821]
[1743644291396,4.38704,1823.6,1823.3,6.8976]
[1743644291605,8.77412,1823.6,1823.4,5.6]
[1743644291805,4.38704,1823.6,1823.4,5.6]
[1743644292000,0.7961,1824.0,1823.4,6.84976]
[1743644292207,0.8204,1824.4,1823.7,0.7667]
[1743644292497,4.38611,1824.0,1823.8,5.599]
[1743644292892,8.77229,1824.0,1823.8,5.599]
[1743644293093,4.38611,1824.0,1823.8,5.599]
[1743644294189,8.77229,1824.0,1823.8,5.599]
[1743644294494,4.38611,1824.0,1823.8,5.599]
[1743644294821,7.38539,1824.3,1823.8,5.599]
[1743644295019,4.38569,1824.2,1823.8,5.599]
[1743644295221,4.38572,1824.1,1823.8,5.599]
[1743644296198,4.38569,1824.2,1823.8,5.599]
[1743644296720,3.0,1824.2,1823.9,0.8248]
[1743644297026,3.0,1824.2,1823.9,5.21097]
[1743644297225,3.0,1824.2,1823.9,9.59714]
[1743644297413,3.0,1824.2,1823.9,5.21097]
[1743644297621,0.7617,1824.6,1824.0,0.05481804]
[1743644297844,4.38408,1824.8,1824.4,4.38499]
[1743644297995,4.38408,1824.8,1824.5,5.6]
[1743644298912,4.38439,1824.7,1824.5,5.6]
[1743644299452,4.38452,1824.6,1824.5,5.6]
[1743644299600,4.38439,1824.7,1824.5,5.6]
[1743644299942,7.38439,1824.7,1824.6,0.23489634]
[1743644300696,8.7682,1824.8,1824.6,0.23489634]
[1743644301017,4.38428,1824.7,1824.6,0.23489634]
[1743644304031,12.21987708,1824.7,1824.6,0.23489634]
[1743644304209,12.21987708,1824.7,1824.6,6.34e-06]
[1743644304414,5.17154,1824.3,1824.2,5.599]
[1743644304613,12.22083708,1824.3,1824.2,5.81566338]
[1743644304830,13.88142779,1824.3,1824.2,5.81566338]
[1743644306027,9.83213071,1824.3,1824.2,5.81566338]
[1743644306607,13.88142779,1824.3,1824.2,5.81566338]
[1743644306806,4.38625,1823.9,1823.6,0.8011]
[1743644307023,4.38625,1823.9,1823.7,5.81871904]
[1743644307208,4.38588,1824.1,1823.7,5.81871904]
[1743644307409,4.38607,1824.0,1823.7,5.81871904]
[1743644308015,4.38588,1824.1,1823.7,5.87354823]
[1743644308558,4.38588,1824.1,1823.7,5.81871904]
[1743644309108,4.38607,1824.0,1823.7,5.81871904]
[1743644309505,8.77183,1824.1,1823.7,0.21871904]
[1743644309747,4.38621,1823.9,1823.8,5.6]
[1743644310112,4.38621,1823.9,1823.8,5.82039512]
[1743644310336,4.38573,1824.1,1823.8,5.82039512]
[1743644312349,8.77167,1824.1,1823.8,5.82039512]
[1743644314647,4.38573,1824.1,1823.8,5.82039512]
[1743644315841,4.38599,1824.0,1823.8,5.82039512]
[1743644316558,5.61878601,1824.0,1823.9,5.599]
[1743644316855,4.38679,1823.7,1823.4,6.08]
[1743644317152,4.38679,1823.7,1823.5,5.599]
[1743644317652,4.3628401,1823.6,1823.1,0.8835]
[1743644317951,4.38788,1823.2,1823.1,0.1]
[1743644318153,4.38788,1823.2,1823.1,5.699]
[1743644318452,4.38767,1823.3,1823.1,5.699]
[1743644320254,10.01765401,1823.5,1823.1,5.699]
[1743644320424,7.38703,1823.6,1823.1,10.95361015]
[1743644320615,7.38703,1823.6,1823.2,1.09536101]
[1743644320817,3.0,1823.6,1823.1,0.9118]
[1743644321024,5.21688,1823.3,1823.2,5.6]
[1743644322223,5.21688,1823.3,1823.1,0.1]
[1743644322429,4.38788,1823.2,1823.1,0.1]
[1743644322658,4.38788,1823.2,1823.1,5.7]
[1743644322863,5.348356,1823.2,1823.1,5.7]
[1743644323922,5.348356,1823.2,1823.1,0.1]
[1743644324172,5.348356,1823.2,1823.1,5.7]
[1743644324465,4.38788,1823.2,1823.1,5.7]
[1743644324822,0.8292,1823.3,1823.1,5.7]
[1743644325027,3.0,1823.4,1823.1,5.7]
[1743644325222,4.38735,1823.5,1823.1,5.7]
[1743644325422,4.38735,1823.5,1823.1,5.75484816]
[1743644325750,3.0,1823.5,1823.1,11.18430682]
[1743644325957,7.38728,1823.5,1823.1,6.79627682]
[1743644326131,4.38756,1823.4,1823.1,5.7]
[1743644327773,8.77511,1823.4,1823.1,5.7]
[1743644327929,4.38755,1823.4,1823.1,5.7]
[1743644328845,4.38776,1823.3,1823.1,5.7]
[1743644329644,4.38776,1823.3,1823.2,0.2110081]
[1743644330581,7.38716,1823.5,1823.2,0.2110081]
[1743644330865,3.817126,1823.5,1823.2,0.2110081]
[1743644331079,4.38761,1823.4,1823.2,0.2110081]
[1743644331464,8.77524,1823.4,1823.2,0.2110081]
[1743644331779,7.38722,1823.5,1823.2,0.2110081]
[1743644332154,5.13813,1823.9,1823.4,4.38722]
[1743644332395,6.18066996,1823.9,1823.5,5.6]
[1743644332565,10.56708996,1823.9,1823.5,10.19708506]
[1743644332883,4.38623,1823.9,1823.5,10.25192106]
[1743644334278,7.38598,1824.0,1823.6,0.8161]
[1743644334474,4.38598,1824.0,1823.6,5.20291]
[1743644334679,4.38598,1824.0,1823.7,0.20804555]
[1743644335086,4.38598,1824.0,1823.6,0.8161]
[1743644335290,4.38598,1824.0,1823.8,0.20763419]
[1743644335493,4.38598,1824.0,1823.9,5.599]
[1743644335655,4.38598,1824.0,1823.9,5.80622287]
[1743644336969,8.44045359,1824.0,1823.9,0.20722287]
[1743644337171,12.21995359,1824.0,1823.4,0.7634]
[1743644337358,4.38674,1823.7,1823.5,5.599]
[1743644337563,4.38674,1823.7,1823.5,5.80765727]
[1743644337961,8.77298,1823.8,1823.5,5.80765727]
[1743644338165,4.38644,1823.8,1823.5,5.80765727]
[1743644338492,8.77302,1823.8,1823.5,5.80765727]
[1743644338898,4.38644,1823.8,1823.5,5.80765727]
[1743644339513,3.0,1824.0,1823.6,5.19653798]
[1743644339716,4.38573,1824.1,1823.6,5.1417]
[1743644340012,4.3861,1824.0,1823.7,0.20783441]
[1743644340212,4.3861,1824.0,1823.6,5.19653051]
[1743644340418,4.3861,1824.0,1823.7,0.20738179]
[1743644340573,7.94216038,1824.0,1823.6,5.1417]
[1743644340773,7.94216038,1824.0,1823.5,6.17976573]
[1743644340774,7.94268038,1823.8,1823.7,0.20738179]
[1743644340990,7.94268038,1823.8,1823.5,5.599]
[1743644341193,4.38692,1823.6,1823.2,5.20417]
[1743644341373,4.38692,1823.6,1823.3,5.598]
[1743644342220,8.77379,1823.7,1823.3,5.598]
[1743644342519,4.38687,1823.7,1823.3,9.98564]
[1743644342879,4.38698,1823.6,1823.3,5.598]
[1743644343082,4.38687,1823.7,1823.3,5.598]
[1743644343612,4.38687,1823.7,1823.3,5.65284132]
[1743644343817,4.38687,1823.7,1823.3,5.598]
[1743644344020,4.38702,1823.6,1823.2,1.23156115]
[1743644344317,4.38717,1823.5,1823.3,5.598]
[1743644344604,4.38717,1823.5,1823.4,0.20846532]
[1743644344969,8.77413,1823.6,1823.4,0.20846532]
[1743644345170,5.14931,1823.9,1823.5,0.7799]
[1743644345171,4.38621,1823.9,1823.5,0.7799]
[1743644345477,3.0,1824.0,1823.6,4.59465912]
[1743644345686,7.38606,1824.0,1823.7,5.597]
[1743644346108,7.38606,1824.0,1823.8,0.20653756]
[1743644346310,8.72977038,1824.2,1823.8,0.20653756]
[1743644346478,4.38577,1824.1,1823.8,0.20653756]
[1743644346902,4.38577,1824.1,1823.8,0.2613602]
[1743644347122,4.38577,1824.1,1823.8,1.0659602]
[1743644347327,4.38517,1824.4,1823.9,0.8046]
[1743644347500,12.32551038,1824.6,1824.1,4.38571]
[1743644347701,12.32551038,1824.6,1824.3,0.7538]
[1743644347919,7.94076038,1824.6,1824.3,0.7538]
[1743644348126,7.94076038,1824.6,1824.4,0.20171268]
[1743644348322,4.3847,1824.6,1824.4,0.20171268]
[1743644348523,4.3847,1824.6,1824.3,0.7538]
[1743644348830,4.3847,1824.6,1824.4,0.20072561]
[1743644349126,12.61061213,1824.8,1824.3,6.1789298]
[1743644349306,12.32454038,1824.8,1824.5,0.20031472]
[1743644349503,3.0,1824.7,1824.6,5.597]
[1743644349709,8.76846,1824.8,1824.6,5.79690387]
[1743644349923,4.38423,1824.8,1824.6,5.79690387]
[1743644350422,4.38334,1825.1,1824.7,0.7508]
[1743644350617,4.38334,1825.1,1824.8,0.19453703]
[1743644350924,8.76634,1825.2,1824.8,0.19453703]
[1743644351451,4.3838,1824.9,1824.8,0.19453703]
[1743644351599,4.38428,1824.7,1824.6,5.597]
[1743644351794,4.38428,1824.7,1824.6,5.77383813]
[1743644352001,13.07986261,1824.7,1824.6,0.17783813]
[1743644352243,7.38476,1824.5,1824.4,5.596]
[1743644352399,7.38476,1824.5,1824.2,5.596]
[1743644352400,4.38524,1824.3,1824.2,5.596]
[1743644354351,8.77039,1824.4,1824.2,5.596]
[1743644354529,4.38517,1824.4,1824.2,5.596]
[1743644354841,4.38477,1824.5,1824.2,5.596]
[1743644355440,4.38507,1824.4,1824.2,5.596]
[1743644355605,4.38477,1824.5,1824.2,0.56508146]
[1743644355836,4.38477,1824.5,1824.3,5.595]
[1743644356032,3.0,1824.7,1824.3,9.98023]
[1743644356349,4.38427,1824.8,1824.4,0.8231058]
[1743644356712,5.18619,1825.2,1824.6,4.3843]
[1743644357052,4.38295,1825.3,1824.8,5.21698]
[1743644357202,4.38295,1825.3,1824.9,0.05479119]
[1743644357403,4.38309,1825.2,1824.8,6.298178]
[1743644357628,4.38295,1825.3,1824.9,0.05478871]
[1743644357811,4.38295,1825.3,1824.8,1.914298]
[1743644358020,4.38334,1825.1,1824.8,1.914298]
[1743644358743,4.38391,1824.9,1824.5,0.8331]
[1743644358902,4.38431,1824.7,1824.5,0.8331]
[1743644359104,4.38431,1824.7,1824.6,5.594]
[1743644359725,4.3841,1824.8,1824.6,5.77318479]
[1743644360106,8.76832,1824.8,1824.6,5.77318479]
[1743644360311,4.3841,1824.8,1824.6,5.77318479]
[1743644361027,8.76832,1824.8,1824.6,5.77318479]
[1743644361233,4.3841,1824.8,1824.6,5.77318479]
[1743644361435,8.76832,1824.8,1824.6,5.77318479]
[1743644362130,4.38366,1825.0,1824.7,0.8165]
[1743644362331,0.8029,1825.2,1824.7,0.8165]
[1743644362633,4.38404,1824.8,1824.6,5.594]
[1743644363131,4.38469,1824.6,1824.2,0.7589]
[1743644363345,4.385,1824.4,1824.3,5.593]
[1743644363546,7.38436,1824.7,1824.3,5.593]
[1743644363748,7.38436,1824.7,1824.3,5.64780878]
[1743644364054,4.38454,1824.6,1824.3,5.593]
[1743644364352,4.385,1824.4,1824.3,5.593]
[1743644365047,4.38476,1824.5,1824.3,5.593]
[1743644365250,4.38451,1824.7,1824.3,6.23367121]
[1743644365541,4.38451,1824.7,1824.4,0.05480278]
[1743644365835,4.38357,1825.0,1824.6,0.7699]
[1743644366035,4.38357,1825.0,1824.7,5.593]
[1743644366204,4.38357,1825.0,1824.7,6.83729]
[1743644366400,4.38357,1825.0,1824.8,0.05479438]
[1743644366635,4.38357,1825.0,1824.7,6.83729]
[1743644367003,8.76735,1825.0,1824.7,6.83729]
[1743644367817,4.38357,1825.0,1824.8,0.05479438]
[1743644368013,4.3833,1825.2,1824.8,0.74400282]
[1743644368218,8.7666,1825.2,1824.8,0.74400282]
[1743644368612,4.38335,1825.1,1824.8,0.74400282]
[1743644368819,4.38366,1825.0,1824.8,0.68920844]
[1743644369216,4.38366,1825.0,1824.8,0.74400282]
[1743644369431,4.38386,1824.9,1824.6,6.8499]
[1743644369634,4.38422,1824.8,1824.7,5.592]
[1743644371028,4.38428,1824.7,1824.6,6.08]
[1743644371224,4.38428,1824.7,1824.6,11.672]
[1743644371627,4.38467,1824.6,1824.4,0.7921]
[1743644371848,4.38467,1824.6,1824.5,5.592]
[1743644372758,8.7687,1824.7,1824.5,5.592]
[1743644373161,4.38415,1824.8,1824.5,6.28521816]
[1743644373589,4.38356,1825.0,1824.5,10.66994816]
[1743644373740,4.38347,1825.1,1824.6,5.1504]
[1743644374081,4.38359,1825.0,1824.7,0.05479414]
[1743644374441,4.38359,1825.0,1824.6,5.1504]
[1743644374777,4.38359,1825.0,1824.7,0.69500538]
[1743644374983,4.38312,1825.2,1824.8,0.05479442]
[1743644375187,4.38312,1825.2,1824.9,5.591]
[1743644375339,4.38312,1825.2,1824.9,5.77014366]
[1743644375786,4.38332,1825.1,1824.9,5.77014366]
[1743644376090,4.38356,1825.0,1824.9,5.77014366]
[1743644378193,4.38356,1825.0,1824.9,0.17914366]
[1743644378194,7.38356,1825.0,1824.9,0.17914366]
[1743644378473,4.38428,1824.7,1824.6,11.671]
[1743644378648,4.38428,1824.7,1824.6,5.7699904]
[1743644378850,5.19738,1824.7,1824.6,5.7699904]
[1743644379045,9.155529,1824.7,1824.6,5.7699904]
[1743644379854,9.155529,1824.7,1824.6,0.1789904]
[1743644380175,4.385,1824.4,1824.3,5.59]
[1743644380681,4.385,1824.4,1824.3,5.77064523]
[1743644381372,4.38483,1824.5,1824.3,5.77064523]
[1743644381899,4.38444,1824.7,1824.3,6.34770975]
[1743644382059,4.38406,1824.8,1824.3,10.73280975]
[1743644382449,8.76833,1824.8,1824.3,10.73280975]
[1743644382879,4.38406,1824.8,1824.3,15.11793975]
[1743644383063,4.38406,1824.8,1824.4,0.22609456]
[1743644383275,8.76833,1824.8,1824.5,0.9863375]
[1743644383453,3.0,1824.9,1824.5,5.3710175]
[1743644384186,3.0,1824.9,1824.6,0.05479685]
[1743644384479,4.38378,1825.0,1824.7,5.7701156]
[1743644384721,4.38394,1824.9,1824.7,5.7701156]
[1743644384998,4.822434,1824.8,1824.7,5.7701156]
[1743644385160,4.38404,1824.8,1824.7,5.7701156]
[1743644385349,4.38394,1824.9,1824.7,5.59]
[1743644385549,4.38394,1824.9,1824.7,5.77002587]
[1743644386315,8.76796,1824.9,1824.7,5.77002587]
[1743644386516,4.38404,1824.8,1824.7,5.77002587]
[1743644387072,4.38404,1824.8,1824.7,0.18002587]
[1743644387300,4.38428,1824.7,1824.6,0.17129337]
[1743644387505,4.38428,1824.7,1824.6,5.76129337]
[1743644387773,4.38428,1824.7,1824.6,5.59]
[1743644388195,4.38476,1824.5,1824.4,0.17129337]
[1743644388419,5.17936,1824.5,1824.4,5.76129337]
[1743644388625,6.135749,1824.5,1824.4,5.76129337]
[1743644388773,6.135749,1824.5,1824.4,5.59]
[1743644389297,5.341149,1824.5,1824.4,5.59]
[1743644389608,4.38476,1824.5,1824.4,5.59]
[1743644389816,4.38476,1824.5,1824.4,5.77197983]
[1743644390674,4.38453,1824.6,1824.4,5.77197983]
[1743644390906,8.76919,1824.6,1824.4,5.77197983]
[1743644391279,4.38476,1824.5,1824.4,5.77197983]
[1743644392237,5.261689,1824.5,1824.4,5.77197983]
[1743644394685,4.38476,1824.5,1824.4,5.77197983]
[1743644396330,4.38476,1824.5,1824.4,0.18197983]
[1743644396727,7.385,1824.4,1824.3,5.59]
[1743644397503,4.385,1824.4,1824.3,5.59]
[1743644398206,4.3848,1824.5,1824.3,5.59]
[1743644398419,4.3848,1824.5,1824.3,6.149]
[1743644398911,4.385,1824.4,1824.3,6.149]
[1743644399118,4.3848,1824.5,1824.3,6.149]
[1743644399520,3.0,1824.6,1824.3,6.149]
[1743644399833,3.0,1824.6,1824.4,0.7852]
[1743644400038,4.38466,1824.6,1824.4,1.47862]
[1743644400207,4.38476,1824.5,1824.3,6.149]
[1743644400407,8.76941,1824.6,1824.3,6.149]
[1743644400637,4.38481,1824.5,1824.3,6.149]
[1743644400937,8.76978,1824.5,1824.3,6.32029337]
[1743644401122,4.385,1824.4,1824.3,5.76129337]
[1743644401318,4.385,1824.4,1824.3,0.17129337]
[1743644401547,4.385,1824.4,1824.3,5.76029337]
[1743644402217,4.385,1824.4,1824.3,5.589]
[1743644402841,4.385,1824.4,1824.2,6.08]
[1743644402842,4.38524,1824.3,1824.2,6.08]
[1743644403050,4.38493,1824.5,1824.2,5.589]
[1743644403204,4.38448,1824.7,1824.3,0.85331077]
[1743644403406,4.38542,1824.3,1824.1,0.97249337]
[1743644403627,4.38542,1824.3,1824.2,5.589]
[1743644404251,7.38548,1824.2,1824.1,0.17129337]
[1743644404450,8.18848,1824.2,1824.1,5.76029337]
[1743644404611,8.18848,1824.2,1824.1,5.589]
[1743644404812,8.18848,1824.2,1824.1,5.77138068]
[1743644405552,8.18848,1824.2,1824.1,0.18238068]
[1743644405748,13.58211951,1824.2,1824.1,0.18238068]
[1743644406123,4.38644,1823.8,1823.7,5.589]
[1743644406523,4.38644,1823.8,1823.7,5.77518524]
[1743644407162,12.23288461,1823.8,1823.7,0.18618524]
[1743644407326,15.52088461,1823.8,1823.7,5.24e-06]
[1743644407526,4.38716,1823.5,1823.4,0.17129337]
[1743644407860,12.20630461,1823.5,1823.4,0.17129337]
[1743644408222,15.49430461,1823.5,1823.4,0.17129337]
[1743644408428,8.14428,1823.2,1823.1,0.112]
[1743644408631,4.38788,1823.2,1823.1,0.2869808]
[1743644411260,4.3877,1823.3,1823.1,0.2869808]
[1743644411486,8.77557,1823.3,1823.1,0.2869808]
[1743644411689,4.38788,1823.2,1823.1,0.2869808]
[1743644412076,8.265438,1823.2,1823.1,0.2869808]
[1743644412280,9.048638,1823.2,1823.1,0.2869808]
[1743644412657,9.048638,1823.2,1823.1,0.112]
[1743644412863,8.265438,1823.2,1823.1,0.112]
[1743644413048,8.17549,1822.7,1822.6,0.17129337]
[1743644413248,12.22403461,1822.7,1822.6,0.35644463]
[1743644413585,12.22403461,1822.7,1822.6,0.17129337]
[1743644413947,7.39029,1822.2,1822.1,0.1]
[1743644414678,7.39029,1822.2,1822.1,0.28743683]
[1743644415597,12.69488461,1822.2,1822.1,0.28743683]
[1743644416116,4.39174,1821.6,1821.5,5.591]
[1743644416282,4.39152,1821.7,1821.5,5.591]
[1743644416477,4.39152,1821.7,1821.6,0.18733955]
[1743644418209,9.23376461,1821.7,1821.6,0.18733955]
[1743644418415,12.23376461,1821.7,1821.6,0.18733955]
[1743644418983,12.23376461,1821.7,1821.2,5.592]
[1743644418984,4.39246,1821.3,1821.2,5.592]
[1743644419529,4.39246,1821.3,1821.2,5.78951384]
[1743644419725,4.39176,1821.6,1821.2,5.78951384]
[1743644419726,4.39188,1821.6,1821.2,5.78951384]
[1743644420022,3.7937,1821.7,1821.3,0.0549041]
[1743644420223,7.39161,1821.7,1821.3,0.05489898]
[1743644420435,4.39137,1821.8,1821.4,1.0133459]
[1743644421094,8.78285,1821.8,1821.4,1.0133459]
[1743644421419,4.39137,1821.8,1821.4,1.0133459]
[1743644421783,8.78285,1821.8,1821.4,1.0133459]
[1743644422017,0.8116,1822.0,1821.4,1.60882128]
[1743644422216,4.04854461,1822.1,1821.4,1.60882128]
[1743644422217,4.39072,1822.1,1821.5,4.39181]
[1743644422384,4.39072,1822.1,1821.6,5.593]
[1743644422579,4.3909,1822.0,1821.6,5.78983152]
[1743644422803,4.39023,1822.3,1821.8,4.39123]
[1743644423003,4.39023,1822.3,1821.9,0.439123]
[1743644423319,4.39023,1822.3,1822.0,5.594]
[1743644423555,8.78048,1822.3,1822.1,0.19584979]
[1743644424017,4.39023,1822.3,1822.1,0.19584979]
[1743644424320,3.0,1822.4,1821.7,0.7912]
[1743644424487,4.39072,1822.1,1821.8,5.78874818]
[1743644424820,4.39032,1822.2,1821.8,6.446743]
[1743644425120,8.78045,1822.3,1821.8,10.89284937]
[1743644425423,8.78036,1822.3,1821.8,10.837963]
[1743644425620,8.78036,1822.3,1821.9,0.05488126]
[1743644426019,4.39018,1822.3,1822.0,0.19428365]
[1743644426612,8.78037,1822.3,1822.0,0.19428365]
[1743644427234,4.39018,1822.3,1822.0,0.19428365]
[1743644427443,4.38975,1822.5,1822.1,0.0548813]
[1743644427643,4.38975,1822.5,1822.2,5.594]
[1743644427812,4.38923,1822.7,1822.3,0.7736]
[1743644428016,4.38923,1822.7,1822.3,1.01878286]
[1743644428234,4.38887,1822.8,1822.3,0.9639139]
[1743644428553,4.38887,1822.8,1822.3,5.3539239]
[1743644428701,4.38921,1822.7,1822.3,0.9639139]
[1743644429049,4.04854461,1822.7,1822.3,0.9639139]
[1743644429336,4.04854461,1822.7,1822.3,0.1903139]
[1743644429337,4.38981,1822.4,1822.3,0.1903139]
[1743644430214,7.38981,1822.4,1822.3,0.1903139]
[1743644430601,4.39005,1822.3,1822.2,5.594]
[1743644432342,7.38981,1822.4,1822.2,5.594]
[1743644432528,4.39005,1822.3,1822.2,5.594]
[1743644432858,11.77985,1822.4,1822.2,5.594]
[1743644433065,7.67622491,1822.4,1822.2,5.594]
[1743644433415,7.38981,1822.4,1822.2,5.594]
[1743644433621,4.39005,1822.3,1822.2,5.594]
[1743644434625,4.39005,1822.3,1822.2,5.92291395]
[1743644435233,5.568036,1822.3,1822.2,0.32891395]
[1743644435432,5.568036,1822.3,1822.2,5.92191395]
[1743644435669,5.568036,1822.3,1822.2,5.593]
[1743644435852,7.67627589,1822.4,1822.2,5.92090946]
[1743644436652,4.39005,1822.3,1822.2,5.92090946]
[1743644436920,7.67627589,1822.4,1822.2,5.92090946]
[1743644437520,7.38985,1822.4,1822.2,5.92090946]
[1743644437735,11.77988,1822.4,1822.2,5.92090946]
[1743644438371,7.38985,1822.4,1822.2,5.92090946]
[1743644438575,4.39005,1822.3,1822.2,5.92090946]
[1743644439067,11.77988,1822.4,1822.2,5.92090946]
[1743644439271,4.39005,1822.3,1822.2,5.92090946]
[1743644441549,11.77988,1822.4,1822.2,5.92090946]
[1743644442184,4.39005,1822.3,1822.2,5.92090946]
[1743644444681,4.39005,1822.3,1822.2,6.09238852]
[1743644446293,6.39654,1822.3,1822.2,0.49938852]
[1743644446493,9.39654,1822.3,1822.2,0.49938852]
[1743644446997,4.39053,1822.1,1822.0,0.17147906]
[1743644447363,4.39053,1822.1,1822.0,0.50009446]
[1743644448273,4.39053,1822.1,1822.0,0.3286154]
[1743644448804,5.26862,1822.1,1822.0,0.3286154]
[1743644449511,4.39077,1822.0,1821.9,5.592]
[1743644449880,4.39077,1822.0,1821.9,5.92204267]
[1743644450469,4.39077,1822.0,1821.9,6.09356609]
[1743644452431,8.21856,1822.3,1821.9,6.09356609]
[1743644452432,5.21873,1822.3,1821.9,6.09356609]
[1743644452596,7.39036,1822.2,1822.0,1.44683627]
[1743644452771,4.39067,1822.1,1821.9,0.50156609]
[1743644452972,4.39077,1822.0,1821.9,0.17152342]
[1743644453166,4.39077,1822.0,1821.9,5.76352342]
[1743644453416,4.39067,1822.1,1821.9,5.76352342]
[1743644453730,4.39067,1822.1,1821.9,5.81840524]
[1743644453865,7.39039,1822.2,1822.0,0.7987]
[1743644454066,3.0,1822.2,1822.0,0.97022342]
[1743644454372,4.39053,1822.1,1822.0,0.97022342]
[1743644454596,7.39033,1822.2,1822.0,0.97022342]
[1743644455478,7.39033,1822.2,1822.0,1.02510184]
[1743644455904,7.39033,1822.2,1822.0,0.97022342]
[1743644456259,0.7816,1822.7,1822.1,0.17152342]
[1743644456517,4.39024,1822.3,1822.1,0.17152342]
[1743644456807,4.39029,1822.2,1822.1,0.17152342]
[1743644457008,4.39029,1822.2,1822.1,5.76352342]
[1743644457306,4.67672101,1822.2,1822.1,5.592]
[1743644458184,4.67672101,1822.2,1822.1,5.76349569]
[1743644459923,5.58341711,1822.2,1822.1,5.76349569]
[1743644460211,5.2969861,1822.2,1822.1,5.76349569]
[1743644460412,8.2969861,1822.2,1822.1,0.17149569]
[1743644460589,9.0955861,1822.2,1822.1,0.17149569]
[1743644461516,4.39222,1821.4,1821.1,0.9046]
[1743644461715,4.39263,1821.3,1821.1,6.4966]
[1743644461921,8.78532,1821.3,1821.2,5.92670798]
[1743644463120,4.39201,1821.5,1821.3,0.7868]
[1743644463476,4.39201,1821.5,1821.4,0.33867204]
[1743644463724,7.831211,1821.5,1821.4,0.33867204]
[1743644463879,8.582111,1821.5,1821.4,0.33867204]
[1743644464079,4.3927,1821.2,1821.1,0.1]
[1743644464324,4.39238,1821.4,1821.1,0.1]
[1743644464483,4.39238,1821.4,1821.2,0.773]
[1743644464683,4.39238,1821.4,1821.2,1.11266361]